fUSD/lending_fUSD_20260322
["ID","MTS","AMOUNT","RATE_DAILY","PERIOD"]
[408734432,1774181443162,-500.0,0.00016639,2]
[408734433,1774181443171,-500.0,0.00016639,2]
[408734434,1774181443180,-250.0,0.00016639,2]
[408734435,1774181443192,-250.0,0.00016639,2]
[408734436,1774181443201,-500.0,0.00016639,2]
[408734437,1774181443210,-250.0,0.00016639,2]
[408734438,1774181443220,-250.0,0.00016639,2]
[408734439,1774181443229,-500.0,0.00016639,2]
[408734440,1774181443239,-250.0,0.00016639,2]
[408734441,1774181443252,-152.6575458,0.00016639,2]
[408734442,1774181443262,-250.0,0.00016639,2]
[408734443,1774181443271,-250.0,0.00016639,2]
[408734444,1774181443280,-174.61919141,0.00016639,2]
[408734445,1774181443290,-250.0,0.00016639,2]
[408734446,1774181443299,-250.0,0.00016639,2]
[408734447,1774181443308,-201.93286099,0.00016639,2]
[408734448,1774181443317,-250.0,0.00016639,2]
[408734449,1774181443327,-250.0,0.00016639,2]
[408734450,1774181443336,-200.0,0.00016639,2]
[408734451,1774181443345,-250.0,0.00016639,2]
[408734452,1774181443356,-250.0,0.00016639,2]
[408734453,1774181443365,-151.0,0.00016639,2]
[408734454,1774181443374,-250.0,0.00016639,2]
[408734455,1774181443383,-156.587,0.00016639,2]
[408734456,1774181443392,-250.0,0.00016639,2]
[408734457,1774181443403,-194.25887118,0.00016639,2]
[408734458,1774181443412,-250.0,0.00016639,2]
[408734459,1774181443422,-250.0,0.00016639,2]
[408734460,1774181443432,-250.0,0.00016639,2]
[408734461,1774181443442,-250.0,0.00016639,2]
[408734462,1774181443452,-151.0,0.00016639,2]
[408734463,1774181443461,-743.50770149,0.00016639,2]
[408734464,1774181443470,-262.90206542,0.00016639,2]
[408734465,1774181443480,-279.9045709,0.00016639,2]
[408734466,1774181443489,-500.0,0.00016639,2]
[408734467,1774181443498,-500.0,0.00016639,2]
[408734468,1774181443508,-500.0,0.00016639,2]
[408734469,1774181443519,-500.0,0.00016639,2]
[408734470,1774181443528,-500.0,0.00016639,2]
[408734471,1774181443537,-418.19,0.0001666,2]
[408734472,1774181443548,-4000.0,0.0001667,2]
[408734473,1774181443556,-500.0,0.00016694,2]
[408734474,1774181443567,-151.0,0.00016694,2]
[408734475,1774181443576,-272.62944185,0.00016694,2]
[408734476,1774181443586,-2000.0,0.000167,2]
[408734477,1774181443595,-2909.0,0.00016707,2]
[408734478,1774181443604,-311.0,0.00016711,2]
[408734479,1774181443614,-311.0,0.00016721,2]
[408734480,1774181443623,-500.0,0.00016749,2]
[408734481,1774181443632,-151.0,0.00016749,2]
[408734482,1774181443641,-282.71673119,0.00016749,2]
[408734483,1774181443651,-6453.0,0.00016791,2]
[408734484,1774181443659,-2000.0,0.000168,2]
[408734485,1774181443668,-500.0,0.00016804,2]
[408734486,1774181443678,-151.0,0.00016804,2]
[408734487,1774181443687,-293.17725025,0.00016804,2]
[408734488,1774181443696,-311.0,0.00016821,2]
[408734489,1774181443705,-150.0,0.0001683,7]
[408734490,1774181443714,-500.0,0.00016836,2]
[408734491,1774181443723,-500.0,0.00016859,2]
[408734492,1774181443732,-151.0,0.00016859,2]
[408734493,1774181443741,-304.02480851,0.00016859,2]
[408734494,1774181443750,-311.0,0.00016875,2]
[408734495,1774181443771,-311.0,0.00016878,2]
[408734496,1774181443786,-623.0,0.00016889,2]
[408734497,1774181443803,-2000.0,0.000169,2]
[408734498,1774181443821,-500.0,0.00016914,2]
[408734499,1774181443837,-151.0,0.00016914,2]
[408734500,1774181443851,-315.27372642,0.00016914,2]
[408734501,1774181443867,-500.0,0.00016969,2]
[408734502,1774181443884,-151.0,0.00016969,2]
[408734503,1774181443900,-326.9388543,0.00016969,2]
[408734504,1774181443917,-1000.0,0.0001697,2]
[408734505,1774181443933,-311.0,0.00016971,2]
[408734506,1774181443952,-311.0,0.0001698,2]
[408734507,1774181443967,-311.0,0.00016982,2]
[408734508,1774181443980,-300.0,0.00017,2]
[408734509,1774181443996,-500.0,0.00017024,2]
[408734510,1774181444011,-151.0,0.00017024,2]
[408734511,1774181444024,-339.03559191,0.00017024,2]
[408734512,1774181444043,-4000.0,0.00017058,2]
[408734513,1774181444056,-500.0,0.00017079,2]
[408734514,1774181444069,-151.0,0.00017079,2]
[408734515,1774181444084,-1120.27238139,0.00017115,2]
[408734516,1774181444100,-500.0,0.00017134,2]
[408734517,1774181444115,-151.0,0.00017134,2]
[408734518,1774181444131,-2909.0,0.00017149,2]
[408734519,1774181444154,-573.03260881,0.00017182,2]
[408734520,1774181444169,-151.0,0.00017187,2]
[408734521,1774181444184,-181.08010149,0.00017187,2]
[408734522,1774181444198,-209.40437684,0.00017187,2]
[408734523,1774181444213,-200.0,0.00017187,2]
[408734524,1774181444227,-771.01748645,0.00017187,2]
[408734525,1774181444243,-290.26104003,0.00017187,2]
[408734526,1774181444257,-500.0,0.00017189,2]
[408734527,1774181444272,-151.0,0.00017189,2]
[408734528,1774181444287,-500.0,0.00017244,2]
[408734529,1774181444301,-151.0,0.00017244,2]
[408734530,1774181444316,-198.40214884,0.00017413,2]
[408734531,1774181444331,-283.42,0.0001751,2]
[408734532,1774181444345,-1209.15946236,0.00017518,2]
[408734533,1774181444360,-476.06,0.000177,2]
[408734534,1774181444374,-373.26,0.000177,2]
[408734535,1774181444389,-848.22,0.000177,2]
[408734536,1774181444403,-979.55,0.000177,2]
[408734537,1774181444417,-954.45,0.000177,2]
[408734538,1774181444431,-151.0,0.00017735,2]
[408734539,1774181444448,-187.78006525,0.00017735,2]
[408734540,1774181444463,-217.15233878,0.00017735,2]
[408734541,1774181444477,-200.0,0.00017735,2]
[408734542,1774181444491,-799.54513345,0.00017735,2]
[408734543,1774181444505,-301.00069851,0.00017735,2]
[408734544,1774181444520,-7345.01451652,0.00017971,2]
[408734545,1774181444534,-725.96,0.00018024,2]
[408734546,1774181444549,-151.0,0.00018283,2]
[408734547,1774181444562,-194.72792766,0.00018283,2]
[408734548,1774181444576,-225.18697532,0.00018283,2]
[408734549,1774181444589,-200.0,0.00018283,2]
[408734550,1774181444602,-829.12830338,0.00018283,2]
[408734551,1774181444615,-312.13772435,0.00018283,2]
[408734552,1774181444629,-9035.0,0.0001847,2]
[408734553,1774181444643,-211.64,0.00018557,2]
[408734555,1774181444656,-151.0,0.00018831,2]
[408734557,1774181444671,-201.93286099,0.00018831,2]
[408734560,1774181444684,-233.51889342,0.00018831,2]
[408734562,1774181444698,-859.80605061,0.00018831,2]
[408734565,1774181444712,-200.0,0.00018831,2]
[408734567,1774181444726,-323.68682015,0.00018831,2]
[408734570,1774181444740,-350.0,0.00019,2]
[408734572,1774181444754,-510.0,0.00019077,6]
[408734575,1774181444768,-150.49957673,0.000191,2]
[408734577,1774181444782,-150.0,0.00019178,2]
[408734580,1774181444795,-2000.0,0.000192,2]
[408734582,1774181444809,-58648.31,0.000192,2]
[408734584,1774181444822,-1621.0,0.00019225,5]
[408734586,1774181444837,-272.11220235,0.00019378,2]
[408734588,1774181444851,-599.60298507,0.00019378,2]
[408734590,1774181444865,-209.40437684,0.00019379,2]
[408734591,1774181444879,-200.0,0.00019379,2]
[408734592,1774181444892,-500.0,0.00019575,2]
[408734593,1774181444906,-970.12,0.000198,2]
[408734594,1774181444920,-217.15233878,0.00019927,2]
[408734595,1774181444934,-200.0,0.00019927,2]
[408734596,1774181444948,-152.2424,0.000201,2]
[408734597,1774181444963,-150.0,0.00020137,2]
[408734598,1774181444977,-725.96,0.00020187,2]
[408734599,1774181444991,-225.18697532,0.00020475,2]
[408734600,1774181445006,-256.77073787,0.00020475,2]
[408734601,1774181445021,-1677.0,0.00020772,5]
[408734602,1774181445036,-233.51889341,0.00021023,2]
[408734603,1774181445049,-1568.0,0.0002122,2]
[408734604,1774181445063,-7345.01451652,0.00021378,2]
[408734605,1774181445077,-58648.31,0.000214,2]
[408734606,1774181445091,-359.63722142,0.00021571,2]
[408734607,1774181445105,-476.06,0.000216,7]
[408734608,1774181445118,-954.45,0.000216,2]
[408734609,1774181445133,-211.64,0.00021607,2]
[408734610,1774181445147,-510.0,0.00021615,8]
[408734611,1774181445160,-373.26,0.000217,2]
[408734612,1774181445174,-848.22,0.000217,2]
[408734613,1774181445188,-979.55,0.000217,2]
[408734614,1774181445202,-500.0,0.00021918,2]
[408734615,1774181445216,-357.88,0.00022,30]
[408734616,1774181445229,-302.0,0.00022,2]
[408734617,1774181445246,-621.78829552,0.00022117,2]
[408734618,1774181445261,-725.96,0.0002235,2]
[408734619,1774181445275,-2654.45,0.0002274,2]
[408734620,1774181445287,-2000.0,0.000229,2]
[408734621,1774181445302,-302.0,0.00023,2]
[408734622,1774181445315,-1120.27238139,0.00023072,2]
[408734623,1774181445329,-500.0,0.00023287,2]
[408734624,1774181445343,-275.14,0.00023639,2]
[408734625,1774181445357,-58648.31,0.000237,7]
[408734626,1774181445371,-979.16666667,0.00024,7]
[408734627,1774181445385,-302.0,0.00024,2]
[408734628,1774181445399,-510.0,0.00024154,10]
[408734629,1774181445414,-418.0,0.00024248,10]
[408734630,1774181445428,-536.0,0.00024248,10]
[408734631,1774181445443,-725.96,0.00024513,2]
[408734632,1774181445456,-153.3761,0.000246,2]
[408734634,1774181445469,-500.0,0.00024656,2]
[408734636,1774181445484,-1000.0,0.00024658,2]
[408734638,1774181445497,-150.0,0.00024658,2]
[408734639,1774181445511,-979.16666667,0.000247,7]
[408734642,1774181445525,-7345.01451652,0.00024784,2]
[408734643,1774181445539,-1931.14,0.00024819,2]
[408734644,1774181445552,-1012.63,0.00024819,2]
[408734645,1774181445566,-6145.81,0.00024819,2]
[408734646,1774181445579,-822.9,0.00024819,2]
[408734647,1774181445594,-442.66,0.00024819,2]
[408734648,1774181445608,-644.79446246,0.00024856,2]
[408734649,1774181445621,-2700.0,0.000249,9]
[408734650,1774181445635,-666.0,0.00024999,2]
[408734651,1774181445648,-277.15195125,0.00024999,10]
[408734652,1774181445663,-970.12,0.00025,2]
[408734653,1774181445677,-302.0,0.00025,2]
[408734654,1774181445691,-7516.0,0.00025348,2]
[408734655,1774181445705,-954.45,0.000254,7]
[408734656,1774181445718,-211.64,0.00025571,2]
[408734657,1774181445733,-1450.0,0.0002561,2]
[408734658,1774181445747,-1450.0,0.0002561,2]
[408734659,1774181445761,-1450.0,0.0002561,2]
[408734660,1774181445775,-1450.0,0.0002561,2]
[408734661,1774181445789,-1450.0,0.0002561,2]
[408734662,1774181445802,-1450.0,0.0002561,2]
[408734663,1774181445816,-1450.0,0.0002561,2]
[408734664,1774181445829,-1450.0,0.0002561,2]
[408734665,1774181445842,-1450.0,0.0002561,2]
[408734666,1774181445856,-1051.0,0.0002561,2]
[408734667,1774181445871,-150.0,0.0002589,2]
[408734668,1774181445884,-58648.31,0.00026,7]
[408734669,1774181445898,-302.0,0.00026,2]
[408734670,1774181445911,-979.16666667,0.00026,7]
[408734671,1774181445925,-476.06,0.000261,7]
[408734672,1774181445939,-373.26,0.000261,7]
[408734673,1774181445954,-848.22,0.000261,7]
[408734674,1774181445968,-979.55,0.000261,7]
[408734675,1774181445982,-357.88,0.00026195,30]
[408734676,1774181445996,-1379.38,0.0002643,2]
[408734679,1774181446010,-726.64,0.0002643,2]
[408734681,1774181446023,-4389.85,0.0002643,2]
[408734682,1774181446037,-608.05,0.0002643,2]
[408734683,1774181446050,-370.41,0.0002643,2]
[408734686,1774181446064,-211.63399379,0.00026484,2]
[408734687,1774181446078,-350.0,0.00026595,2]
[408734689,1774181446091,-350.0,0.00026595,2]
[408734692,1774181446104,-350.0,0.00026595,2]
[408734694,1774181446117,-350.0,0.00026595,2]
[408734697,1774181446131,-350.0,0.00026595,2]
[408734699,1774181446144,-350.0,0.00026595,2]
[408734702,1774181446158,-350.0,0.00026595,2]
[408734703,1774181446171,-350.0,0.00026595,2]
[408734704,1774181446184,-301.0,0.00026595,2]
[408734705,1774181446198,-2000.0,0.000266,2]
[408734706,1774181446211,-725.96,0.00026676,2]
[408734707,1774181446224,-510.0,0.00026692,13]
[408734708,1774181446237,-800.0,0.00026986,120]
[408734709,1774181446253,-800.0,0.00026986,120]
[408734710,1774181446265,-800.0,0.00026986,120]
[408734711,1774181446279,-316.4,0.00027,2]
[408734712,1774181446292,-150.0,0.00027185,2]
[408734713,1774181446305,-998.0,0.000273,2]
[408734714,1774181446319,-312.0,0.000273,2]
[408734715,1774181446331,-284.5883761,0.00027397,2]
[408734716,1774181446344,-668.65185757,0.00027595,2]
[408734717,1774181446356,-466.51132897,0.00027884,120]
[408734718,1774181446369,-1082.05338686,0.00027884,120]
[408734719,1774181446382,-342.10209675,0.00027884,120]
[408734720,1774181446394,-215.88,0.00027972,2]
[408734721,1774181446407,-979.16666667,0.00028,10]
[408734722,1774181446420,-163.0,0.0002818,10]
[408734723,1774181446433,-7345.01451652,0.00028191,2]
[408734724,1774181446446,-58648.31,0.000282,7]
[408734725,1774181446459,-1158.0,0.00028486,120]
[408734726,1774181446471,-150.0,0.00028493,60]
[408734727,1774181446483,-150.0,0.00028493,60]
[408734728,1774181446495,-200.0,0.00028493,60]
[408734729,1774181446507,-151.0,0.00028493,7]
[408734730,1774181446519,-151.0,0.00028493,7]
[408734731,1774181446531,-151.0,0.00028493,7]
[408734732,1774181446545,-151.0,0.00028493,7]
[408734733,1774181446559,-151.0,0.00028493,7]
[408734734,1774181446573,-297.85656,0.00028493,7]
[408734735,1774181446587,-297.85656,0.00028493,7]
[408734736,1774181446602,-297.85656,0.00028493,7]
[408734737,1774181446616,-297.85656,0.00028493,7]
[408734738,1774181446631,-151.0,0.00028493,7]
[408734739,1774181446643,-151.0,0.00028493,7]
[408734740,1774181447105,-151.0,0.00028493,7]
[408734741,1774181447150,-151.0,0.00028493,7]
[408734742,1774181447176,-151.0,0.00028493,7]
[408734743,1774181447185,-954.45,0.000285,7]
[408734744,1774181447196,-870.0,0.0002853,120]
[408734745,1774181447205,-150.0,0.00028544,2]
[408734746,1774181447215,-500.0,0.00028767,120]
[408734747,1774181447224,-500.0,0.00028767,120]
[408734748,1774181447234,-500.0,0.00028767,120]
[408734749,1774181447244,-500.0,0.00028767,120]
[408734750,1774181447256,-500.0,0.00028767,120]
[408734751,1774181447265,-500.0,0.00028767,120]
[408734752,1774181447275,-191.26170008,0.00028767,120]
[408734753,1774181447284,-452.83740493,0.00028831,2]
[408734754,1774181447293,-725.96,0.00028839,2]
[408734755,1774181447303,-476.06,0.000289,7]
[408734756,1774181447311,-373.26,0.000289,7]
[408734757,1774181447321,-848.22,0.000289,7]
[408734758,1774181447331,-979.55,0.000289,7]
[408734759,1774181447340,-151.0,0.000289,7]
[408734760,1774181447349,-154.109905,0.000289,7]
[408734761,1774181447358,-151.0,0.000289,7]
[408734762,1774181447368,-151.0,0.000289,7]
[408734763,1774181447377,-242.126351,0.000289,7]
[408734764,1774181447387,-242.126351,0.000289,7]
[408734765,1774181447396,-242.126351,0.000289,7]
[408734766,1774181447406,-242.126351,0.000289,7]
[408734767,1774181447415,-524.300108,0.000289,7]
[408734768,1774181447425,-524.300108,0.000289,7]
[408734769,1774181447435,-524.300108,0.000289,7]
[408734770,1774181447444,-524.300108,0.000289,7]
[408734771,1774181447454,-154.5183,0.00029,2]
[408734772,1774181447463,-1120.27238139,0.00029029,2]
[408734773,1774181447473,-510.0,0.00029231,15]
[408734774,1774181447483,-151.0,0.00029279,7]
[408734775,1774181447492,-151.0,0.00029279,7]
[408734776,1774181447502,-151.0,0.00029279,7]
[408734777,1774181447511,-285.212221,0.00029279,7]
[408734778,1774181447521,-360.976367,0.00029279,7]
[408734779,1774181447531,-360.976367,0.00029279,7]
[408734780,1774181447540,-360.976367,0.00029279,7]
[408734781,1774181447550,-360.976367,0.00029279,7]
[408734782,1774181447559,-151.0,0.00029279,7]
[408734783,1774181447568,-151.0,0.00029279,7]
[408734784,1774181447577,-151.0,0.00029279,7]
[408734785,1774181447587,-151.0,0.00029279,7]
[408734786,1774181447596,-151.0,0.00029279,7]
[408734787,1774181447605,-196.158797,0.00029279,7]
[408734788,1774181447614,-155.405391,0.00029279,7]
[408734789,1774181447624,-196.158797,0.00029279,7]
[408734790,1774181447634,-155.405391,0.00029279,7]
[408734791,1774181447643,-196.158797,0.00029279,7]
[408734792,1774181447652,-155.405391,0.00029279,7]
[408734793,1774181447662,-196.158797,0.00029279,7]
[408734794,1774181447671,-155.405391,0.00029279,7]
[408734795,1774181447680,-151.0,0.000294,7]
[408734796,1774181447689,-151.0,0.000294,7]
[408734797,1774181447699,-151.0,0.000294,7]
[408734798,1774181447708,-163.953001,0.0002955,10]
[408734799,1774181447717,-58648.31,0.000296,7]
[408734800,1774181447726,-345.281951,0.00029694,14]
[408734801,1774181447736,-500.0,0.000298,5]
[408734802,1774181447744,-500.0,0.000298,5]
[408734803,1774181447754,-500.0,0.000298,5]
[408734804,1774181447762,-501.2901347,0.000298,5]
[408734805,1774181447772,-1158.0,0.0002991,120]
[408734806,1774181447781,-870.0,0.00029956,120]
[408734807,1774181447791,-150.0,0.00029971,2]
[408734808,1774181447799,-421.87618475,0.0003,7]
[408734809,1774181447808,-362.72905046,0.0003,30]
[408734810,1774181447817,-570.0,0.0003,120]
[408734811,1774181447826,-700.0,0.00030094,7]
[408734812,1774181447835,-2000.0,0.000303,2]
[408734813,1774181447844,-412.51669,0.0003031,6]
[408734814,1774181447853,-412.51669,0.0003031,6]
[408734815,1774181447862,-412.51669,0.0003031,6]
[408734816,1774181447871,-412.5167,0.0003031,6]
[408734817,1774181447880,-693.3919763,0.00030334,2]
[408734818,1774181447890,-357.88,0.00030389,60]
[408734819,1774181447900,-212.41,0.00030411,120]
[408734820,1774181447911,-150.0,0.00030563,2]
[408734821,1774181447921,-152.68821992,0.00030572,2]
[408734822,1774181447930,-250.0,0.00030603,16]
[408734823,1774181447939,-357.24921342,0.00030615,2]
[408734824,1774181447949,-187.96002081,0.00030615,2]
[408734825,1774181447959,-412.5167,0.00030615,9]
[408734826,1774181447968,-412.51669,0.00030615,9]
[408734827,1774181447978,-11973.30592714,0.00030692,30]
[408734828,1774181447988,-954.45,0.000307,7]
[408734829,1774181447998,-193.45495514,0.000308,7]
[408734830,1774181448008,-226.61972177,0.000308,7]
[408734831,1774181448018,-1521.0,0.000308,7]
[408734832,1774181448027,-1521.0,0.000308,7]
[408734833,1774181448037,-1521.0,0.000308,7]
[408734834,1774181448047,-261.83977785,0.000308,7]
[408734835,1774181448057,-151.0,0.000308,7]
[408734836,1774181448066,-1521.0,0.000308,7]
[408734837,1774181448075,-1521.0,0.000308,7]
[408734838,1774181448084,-151.0,0.000308,7]
[408734839,1774181448094,-1521.0,0.000308,7]
[408734840,1774181448103,-151.0,0.000308,7]
[408734841,1774181448112,-1521.0,0.000308,7]
[408734842,1774181448121,-151.0,0.000308,7]
[408734843,1774181448130,-1521.0,0.000308,7]
[408734844,1774181448138,-153.0,0.000308,7]
[408734845,1774181448148,-1506.66003204,0.000308,7]
[408734846,1774181448157,-239.0021021,0.000308,7]
[408734847,1774181448166,-150.0,0.000308,4]
[408734848,1774181448176,-150.0,0.000308,4]
[408734849,1774181448185,-1521.0,0.000308,7]
[408734850,1774181448195,-1521.0,0.000308,7]
[408734851,1774181448204,-456.12817696,0.000308,7]
[408734852,1774181448214,-151.0,0.000308,7]
[408734853,1774181448223,-151.0,0.000308,7]
[408734854,1774181448233,-153.78487307,0.000308,7]
[408734855,1774181448244,-222.90548411,0.000308,7]
[408734856,1774181448260,-150.0,0.000308,2]
[408734857,1774181448269,-150.0,0.000308,2]
[408734858,1774181448279,-150.0,0.000308,2]
[408734859,1774181448290,-150.0,0.000308,2]
[408734860,1774181448299,-150.0,0.000308,2]
[408734861,1774181448308,-150.0,0.000308,2]
[408734862,1774181448318,-199.51664943,0.000308,2]
[408734863,1774181448328,-208.0,0.0003084,30]
[408734864,1774181448337,-476.06,0.000309,30]
[408734865,1774181448346,-58648.31,0.000309,7]
[408734866,1774181448354,-2269.20548033,0.00031,30]
[408734867,1774181448364,-160.0,0.00031,30]
[408734868,1774181448372,-979.16666667,0.00031,30]
[408734869,1774181448381,-979.16666667,0.00031,120]
[408734870,1774181448390,-725.96,0.00031002,2]
[408734871,1774181448399,-373.26,0.000311,7]
[408734872,1774181448408,-848.22,0.000311,7]
[408734873,1774181448418,-979.55,0.000311,7]
[408734874,1774181448426,-1150.0,0.00031212,2]
[408734875,1774181448435,-1150.0,0.00031212,2]
[408734876,1774181448444,-1150.0,0.00031212,2]
[408734877,1774181448454,-1150.0,0.00031212,2]
[408734878,1774181448467,-1150.0,0.00031212,2]
[408734879,1774181448476,-1150.0,0.00031212,2]
[408734880,1774181448485,-1150.0,0.00031212,2]
[408734881,1774181448494,-1150.0,0.00031212,2]
[408734882,1774181448502,-1150.0,0.00031212,2]
[408734883,1774181448511,-1148.0,0.00031212,2]
[408734884,1774181448521,-202.985,0.00031343,30]
[408734885,1774181448531,-1109.65015483,0.00031347,54]
[408734886,1774181448540,-515.73565323,0.000314,30]
[408734887,1774181448549,-1158.0,0.00031406,120]
[408734888,1774181448558,-870.0,0.00031454,120]
[408734889,1774181448567,-150.0,0.0003147,2]
[408734890,1774181448576,-277.29,0.00031518,2]
[408734891,1774181448585,-240.98,0.00031518,2]
[408734892,1774181448595,-298.12,0.00031518,2]
[408734893,1774181448604,-7345.01451652,0.00031597,2]
[408734894,1774181448613,-227.11,0.00031693,2]
[408734895,1774181448623,-908.39,0.00031693,2]
[408734896,1774181448632,-215.88,0.00031693,2]
[408734897,1774181448641,-510.0,0.00031769,17]
[408734898,1774181448649,-213.8,0.000318,5]
[408734899,1774181448658,-213.8,0.000318,5]
[408734900,1774181448667,-175.58471718,0.00032,120]
[408734901,1774181448676,-500.0,0.00032,120]
[408734902,1774181448685,-150.0,0.000322,30]
[408734903,1774181448694,-150.0,0.000322,30]
[408734904,1774181448704,-362.72905046,0.00032222,30]
[408734905,1774181448713,-362.72905046,0.00032222,30]
[408734906,1774181448722,-362.72905046,0.00032222,30]
[408734907,1774181448731,-151.0,0.000323,7]
[408734908,1774181448740,-151.0,0.000323,7]
[408734909,1774181448750,-58648.31,0.000323,7]
[408734910,1774181448759,-151.0,0.000323,7]
[408734911,1774181448768,-151.0,0.000323,7]
[408734912,1774181448777,-204.735556,0.000323,7]
[408734913,1774181448786,-954.45,0.000324,7]
[408734914,1774181448795,-337.7,0.00032459,120]
[408734915,1774181448804,-476.06,0.000326,30]
[408734916,1774181448813,-337.7,0.00032733,120]
[408734917,1774181448822,-208.0,0.0003286,30]
[408734918,1774181448831,-874.41,0.00032877,2]
[408734919,1774181448840,-347.56,0.00032877,2]
[408734920,1774181448849,-151.0,0.00032877,7]
[408734921,1774181448858,-151.0,0.00032877,7]
[408734922,1774181448867,-151.0,0.00032877,7]
[408734923,1774181448876,-472.94793643,0.00033,30]
[408734924,1774181448886,-150.0,0.00033,14]
[408734925,1774181448895,-373.26,0.00033,7]
[408734926,1774181448904,-337.7,0.00033007,120]
[408734927,1774181448912,-870.0,0.00033027,120]
[408734928,1774181448922,-150.0,0.00033043,2]
[408734929,1774181448931,-719.04747942,0.00033073,2]
[408734930,1774181448940,-725.96,0.00033165,2]
[408734931,1774181448950,-337.7,0.00033281,120]
[408734932,1774181448959,-970.12,0.000333,2]
[408734933,1774181448969,-848.22,0.000333,30]
[408734934,1774181448979,-979.55,0.000333,30]
[408734935,1774181448989,-155.6691,0.000335,2]
[408734936,1774181448998,-302.0,0.00033528,30]
[408734937,1774181449008,-337.7,0.00033555,120]
[408734938,1774181449018,-2503.88019962,0.000337,120]
[408734939,1774181449027,-58648.31,0.000337,7]
[408734940,1774181449036,-337.7,0.00033828,120]
[408734941,1774181449046,-500.0,0.00033918,2]
[408734942,1774181449056,-2654.45,0.00033973,2]
[408734943,1774181449066,-2000.0,0.00034,2]
[408734944,1774181449076,-500.0,0.00034,120]
[408734945,1774181449085,-337.7,0.00034102,120]
[408734946,1774181449094,-272.11165057,0.00034154,60]
[408734947,1774181449103,-159.82,0.00034173,2]
[408734948,1774181449113,-212.41,0.00034212,120]
[408734949,1774181449122,-476.06,0.000343,30]
[408734950,1774181449131,-510.0,0.00034308,19]
[408734951,1774181449141,-337.7,0.00034376,120]
[408734952,1774181449150,-500.0,0.00034408,120]
[408734953,1774181449160,-362.72905046,0.00034444,30]
[408734954,1774181449169,-362.72905046,0.00034444,30]
[408734955,1774181449179,-954.45,0.000345,30]
[408734956,1774181449188,-3514.0,0.00034502,2]
[408734957,1774181449197,-1345.0,0.00034502,2]
[408734958,1774181449207,-150.0,0.00034502,2]
[408734959,1774181449216,-1261.0,0.00034502,2]
[408734960,1774181449226,-302.0,0.00034528,30]
[408734961,1774181449235,-357.88,0.00034584,60]
[408734962,1774181449246,-337.7,0.0003465,120]
[408734963,1774181449256,-870.0,0.00034678,120]
[408734964,1774181449266,-150.0,0.00034696,2]
[408734965,1774181449276,-1215.0,0.00034738,2]
[408734966,1774181449285,-924.0,0.00034738,2]
[408734967,1774181449296,-6008.0,0.00034738,2]
[408734968,1774181449305,-2466.0,0.00034738,2]
[408734969,1774181449315,-208.0,0.0003488,30]
[408734970,1774181449324,-373.26,0.000349,7]
[408734971,1774181449333,-337.7,0.00034924,120]